[Event "Titled Tuesday Blitz August 22 Late 2023"]
[White "Postlmayer, Jakob"]
[Black "Dominguez Perez, Leinier"]
[WhiteFideId "1643622"]
[BlackFideId "3503240"]
[WhiteElo "2623"]
[BlackElo "2924"]
[Result "0-1"]
[Round "9"]
[TimeControl "180+1"]
[Date "2023.08.22"]
[WhiteClock "0:01:17"]
[BlackClock "0:01:30"]
[Board "19"]

1. d4 {[%clk 0:03:00]}  Nf6 {[%clk 0:02:59]} 2. Nf3 {[%clk 0:03:01]}  d5 {[%clk 0:02:58]} 3. e3 {[%clk 0:03:01]}  c5 {[%clk 0:02:58]} 4. dxc5 {[%clk 0:02:58]}  e6 {[%clk 0:02:57]} 5. b4 {[%clk 0:02:56]}  a5 {[%clk 0:02:57]} 6. c3 {[%clk 0:02:56]}  axb4 {[%clk 0:02:57]} 7. cxb4 {[%clk 0:02:57]}  b6 {[%clk 0:02:58]} 8. Bb5+ {[%clk 0:02:56]}  Bd7 {[%clk 0:02:58]} 9. Bxd7+ {[%clk 0:02:56]}  Nbxd7 {[%clk 0:02:59]} 10. a4 {[%clk 0:02:55]}  bxc5 {[%clk 0:03:00]} 11. b5 {[%clk 0:02:55]}  Bd6 {[%clk 0:03:00]} 12. O-O {[%clk 0:02:53]}  O-O {[%clk 0:03:00]} 13. Bb2 {[%clk 0:02:52]}  Qb8 {[%clk 0:02:59]} 14. Nc3 {[%clk 0:02:45]}  c4 {[%clk 0:02:54]} 15. h3 {[%clk 0:02:43]}  Nc5 {[%clk 0:02:53]} 16. Nd4 {[%clk 0:02:41]}  Nd3 {[%clk 0:02:40]} 17. Qc2 {[%clk 0:02:35]}  Rc8 {[%clk 0:02:37]} 18. Ba3 {[%clk 0:02:31]}  Bxa3 {[%clk 0:02:12]} 19. Rxa3 {[%clk 0:02:32]}  e5 {[%clk 0:02:07]} 20. Nc6 {[%clk 0:02:22]}  Qd6 {[%clk 0:02:07]} 21. Rd1 {[%clk 0:02:09]}  Qxa3 {[%clk 0:02:04]} 22. Rb1 {[%clk 0:01:51]}  Qd6 {[%clk 0:02:00]} 23. e4 {[%clk 0:01:35]}  dxe4 {[%clk 0:01:50]} 24. Nd1 {[%clk 0:01:34]}  Rxc6 {[%clk 0:01:45]} 25. bxc6 {[%clk 0:01:33]}  Qxc6 {[%clk 0:01:46]} 26. Ra1 {[%clk 0:01:31]}  g6 {[%clk 0:01:40]} 27. Ne3 {[%clk 0:01:30]}  c3 {[%clk 0:01:39]} 28. Ra3 {[%clk 0:01:30]}  Nb4 {[%clk 0:01:35]} 29. Qxc3 {[%clk 0:01:28]}  Qxc3 {[%clk 0:01:34]} 30. Rxc3 {[%clk 0:01:29]}  Rxa4 {[%clk 0:01:34]} 31. Kh2 {[%clk 0:01:17]}  Ra2 {[%clk 0:01:30]} 0-1


[Site "https://www.chess.com"]

[Event "Titled Tuesday Blitz August 22 Late 2023"]
[White "Glavina, Pablo"]
[Black "Makarian, Rudik"]
[WhiteFideId "100234"]
[BlackFideId "44105681"]
[WhiteElo "2562"]
[BlackElo "2916"]
[Result "1-0"]
[Round "9"]
[TimeControl "180+1"]
[Date "2023.08.22"]
[WhiteClock "0:00:03"]
[BlackClock "0:00:00"]
[Board "21"]

1. c4 {[%clk 0:03:00]}  e6 {[%clk 0:02:35]} 2. g3 {[%clk 0:03:00]}  d5 {[%clk 0:02:36]} 3. Bg2 {[%clk 0:03:01]}  Nf6 {[%clk 0:02:35]} 4. Nf3 {[%clk 0:03:01]}  dxc4 {[%clk 0:02:35]} 5. Qa4+ {[%clk 0:03:02]}  Bd7 {[%clk 0:02:34]} 6. Qxc4 {[%clk 0:03:02]}  c5 {[%clk 0:02:35]} 7. Ne5 {[%clk 0:03:00]}  Qc8 {[%clk 0:02:33]} 8. O-O {[%clk 0:02:59]}  Nc6 {[%clk 0:02:33]} 9. Nxd7 {[%clk 0:02:59]}  Qxd7 {[%clk 0:02:34]} 10. Nc3 {[%clk 0:02:57]}  Rc8 {[%clk 0:02:34]} 11. d3 {[%clk 0:02:56]}  Be7 {[%clk 0:02:34]} 12. Be3 {[%clk 0:02:50]}  O-O {[%clk 0:02:33]} 13. Rfd1 {[%clk 0:02:48]}  h6 {[%clk 0:02:33]} 14. h3 {[%clk 0:02:45]}  Nd4 {[%clk 0:02:33]} 15. a4 {[%clk 0:02:43]}  Nc2 {[%clk 0:02:33]} 16. Rac1 {[%clk 0:02:35]}  Nxe3 {[%clk 0:02:33]} 17. fxe3 {[%clk 0:02:36]}  Qc7 {[%clk 0:02:32]} 18. g4 {[%clk 0:02:31]}  Rfd8 {[%clk 0:02:16]} 19. Nb5 {[%clk 0:02:28]}  Qb8 {[%clk 0:02:16]} 20. Qf4 {[%clk 0:02:15]}  e5 {[%clk 0:01:55]} 21. Qf3 {[%clk 0:02:14]}  e4 {[%clk 0:01:53]} 22. dxe4 {[%clk 0:02:12]}  a6 {[%clk 0:01:43]} 23. Nc3 {[%clk 0:02:10]}  Bd6 {[%clk 0:01:42]} 24. Nd5 {[%clk 0:02:03]}  Bh2+ {[%clk 0:01:42]} 25. Kh1 {[%clk 0:02:02]}  Be5 {[%clk 0:01:35]} 26. Ne7+ {[%clk 0:02:00]}  Kf8 {[%clk 0:01:33]} 27. Nxc8 {[%clk 0:02:01]}  Rxc8 {[%clk 0:01:34]} 28. b3 {[%clk 0:01:49]}  b6 {[%clk 0:01:33]} 29. h4 {[%clk 0:01:39]}  g6 {[%clk 0:01:32]} 30. g5 {[%clk 0:01:36]}  hxg5 {[%clk 0:01:30]} 31. hxg5 {[%clk 0:01:37]}  Nh7 {[%clk 0:01:27]} 32. Qg4 {[%clk 0:01:15]}  Rd8 {[%clk 0:01:21]} 33. Bf3 {[%clk 0:00:55]}  Kg7 {[%clk 0:01:19]} 34. Kg2 {[%clk 0:00:55]}  Qc7 {[%clk 0:01:07]} 35. Qh4 {[%clk 0:00:46]}  Kg8 {[%clk 0:00:58]} 36. Rh1 {[%clk 0:00:37]}  Nf8 {[%clk 0:00:58]} 37. Rcd1 {[%clk 0:00:30]}  Rxd1 {[%clk 0:00:52]} 38. Rxd1 {[%clk 0:00:31]}  b5 {[%clk 0:00:52]} 39. axb5 {[%clk 0:00:30]}  axb5 {[%clk 0:00:53]} 40. Qe1 {[%clk 0:00:18]}  c4 {[%clk 0:00:52]} 41. bxc4 {[%clk 0:00:19]}  bxc4 {[%clk 0:00:53]} 42. Qd2 {[%clk 0:00:19]}  c3 {[%clk 0:00:48]} 43. Qd8 {[%clk 0:00:15]}  Qc5 {[%clk 0:00:20]} 44. Qd5 {[%clk 0:00:13]}  Qe7 {[%clk 0:00:20]} 45. Qd8 {[%clk 0:00:13]}  Qc5 {[%clk 0:00:13]} 46. Qd5 {[%clk 0:00:06]}  Qc7 {[%clk 0:00:10]} 47. Qd8 {[%clk 0:00:04]}  Qc6 {[%clk 0:00:09]} 48. Qd5 {[%clk 0:00:03]}  c2 {[%clk 0:00:08]} 49. Rc1 {[%clk 0:00:01]}  Qc7 {[%clk 0:00:08]} 50. Kh3 {[%clk 0:00:01]}  Bb2 {[%clk 0:00:07]} 51. Qd2 {[%clk 0:00:01]}  Bxc1 {[%clk 0:00:06]} 52. Qxc1 {[%clk 0:00:02]}  Nd7 {[%clk 0:00:05]} 53. e5 {[%clk 0:00:02]}  Nxe5 {[%clk 0:00:05]} 54. Be4 {[%clk 0:00:03]}  Qc8+ {[%clk 0:00:04]} 55. Kh2 {[%clk 0:00:02]}  Qg4 {[%clk 0:00:04]} 56. Qxc2 {[%clk 0:00:03]}  Qh4+ {[%clk 0:00:05]} 57. Kg2 {[%clk 0:00:03]}  Qxg5+ {[%clk 0:00:05]} 58. Kf1 {[%clk 0:00:02]}  Qxe3 {[%clk 0:00:05]} 59. Qc8+ {[%clk 0:00:02]}  Kg7 {[%clk 0:00:06]} 60. Bd3 {[%clk 0:00:01]}  Qf4+ {[%clk 0:00:03]} 61. Ke1 {[%clk 0:00:01]}  Nxd3+ {[%clk 0:00:03]} 62. exd3 {[%clk 0:00:02]}  Qe3+ {[%clk 0:00:04]} 63. Kf1 {[%clk 0:00:03]}  Qxd3+ {[%clk 0:00:04]} 64. Kg2 {[%clk 0:00:03]}  Qe4+ {[%clk 0:00:04]} 65. Kg1 {[%clk 0:00:03]}  Qe5 {[%clk 0:00:03]} 66. Qc6 {[%clk 0:00:03]}  Qd4+ {[%clk 0:00:03]} 67. Kh1 {[%clk 0:00:03]}  Qf6 {[%clk 0:00:04]} 68. Qc7 {[%clk 0:00:03]}  g5 {[%clk 0:00:04]} 69. Qc4 {[%clk 0:00:02]}  Qh6+ {[%clk 0:00:03]} 70. Kg1 {[%clk 0:00:02]}  Qe6 {[%clk 0:00:03]} 71. Qc3+ {[%clk 0:00:02]}  Qf6 {[%clk 0:00:04]} 72. Qc4 {[%clk 0:00:03]}  Qe5 {[%clk 0:00:04]} 73. Kg2 {[%clk 0:00:03]}  Kg6 {[%clk 0:00:04]} 74. Qa6+ {[%clk 0:00:03]}  Qf6 {[%clk 0:00:04]} 75. Qc8 {[%clk 0:00:04]}  Kg7 {[%clk 0:00:00]} 76. Qe8 {[%clk 0:00:03]} 1-0


[Site "https://www.chess.com"]

[Event "Titled Tuesday Blitz August 22 Late 2023"]
[White "Troff, Kayden"]
[Black "Holt, Conrad"]
[WhiteFideId "2047896"]
[BlackFideId "2034387"]
[WhiteElo "2753"]
[BlackElo "2916"]
[Result "1-0"]
[Round "9"]
[TimeControl "180+1"]
[Date "2023.08.22"]
[WhiteClock "0:00:16"]
[BlackClock "0:00:07"]
[Board "23"]

1. d4 {[%clk 0:03:00]}  d5 {[%clk 0:02:51]} 2. Nf3 {[%clk 0:03:00]}  Nf6 {[%clk 0:02:51]} 3. Bf4 {[%clk 0:03:00]}  Nh5 {[%clk 0:02:49]} 4. Be5 {[%clk 0:02:54]}  Nd7 {[%clk 0:02:47]} 5. e3 {[%clk 0:02:35]}  e6 {[%clk 0:02:42]} 6. Bd3 {[%clk 0:02:18]}  Nxe5 {[%clk 0:02:26]} 7. dxe5 {[%clk 0:02:15]}  g6 {[%clk 0:02:26]} 8. Nc3 {[%clk 0:02:06]}  Bd7 {[%clk 0:02:19]} 9. g4 {[%clk 0:01:55]}  Ng7 {[%clk 0:02:18]} 10. e4 {[%clk 0:01:55]}  c6 {[%clk 0:01:50]} 11. Qd2 {[%clk 0:01:51]}  h5 {[%clk 0:01:49]} 12. g5 {[%clk 0:01:41]}  Qa5 {[%clk 0:01:43]} 13. a3 {[%clk 0:01:32]}  Be7 {[%clk 0:01:38]} 14. h4 {[%clk 0:01:24]}  O-O {[%clk 0:01:31]} 15. O-O {[%clk 0:01:18]}  Qb6 {[%clk 0:01:22]} 16. Rab1 {[%clk 0:00:53]}  Rfd8 {[%clk 0:01:19]} 17. Rfd1 {[%clk 0:00:46]}  Be8 {[%clk 0:01:16]} 18. Qf4 {[%clk 0:00:40]}  c5 {[%clk 0:01:00]} 19. Bf1 {[%clk 0:00:24]}  Bc6 {[%clk 0:00:56]} 20. Bg2 {[%clk 0:00:17]}  d4 {[%clk 0:00:34]} 21. Ne2 {[%clk 0:00:17]}  Bb5 {[%clk 0:00:30]} 22. Bf1 {[%clk 0:00:17]}  Qa6 {[%clk 0:00:30]} 23. Ng3 {[%clk 0:00:17]}  Bxf1 {[%clk 0:00:28]} 24. Nxf1 {[%clk 0:00:18]}  Ne8 {[%clk 0:00:21]} 25. Ng3 {[%clk 0:00:16]}  Nc7 {[%clk 0:00:21]} 26. Kh2 {[%clk 0:00:16]}  Nb5 {[%clk 0:00:17]} 27. Nxh5 {[%clk 0:00:15]}  gxh5 {[%clk 0:00:05]} 28. g6 {[%clk 0:00:16]}  fxg6 {[%clk 0:00:06]} 29. Rg1 {[%clk 0:00:15]}  Kg7 {[%clk 0:00:06]} 30. Rxg6+ {[%clk 0:00:15]}  Kxg6 {[%clk 0:00:06]} 31. Rg1+ {[%clk 0:00:16]}  Kh7 {[%clk 0:00:06]} 32. Qf7+ {[%clk 0:00:16]}  Kh8 {[%clk 0:00:07]} 33. Qg7# {[%clk 0:00:16]} 1-0


[Site "https://www.chess.com"]

[Event "Titled Tuesday Blitz August 22 Late 2023"]
[White "Jaracz, Pawel"]
[Black "Principe, Gerson"]
[WhiteFideId "1102222"]
[BlackFideId "3804550"]
[WhiteElo "2728"]
[BlackElo "2585"]
[Result "1-0"]
[Round "9"]
[TimeControl "180+1"]
[Date "2023.08.22"]
[WhiteClock "0:00:10"]
[BlackClock "0:00:03"]
[Board "32"]

1. e4 {[%clk 0:02:53]}  c6 {[%clk 0:03:00]} 2. c4 {[%clk 0:02:53]}  d5 {[%clk 0:02:57]} 3. exd5 {[%clk 0:02:53]}  cxd5 {[%clk 0:02:58]} 4. cxd5 {[%clk 0:02:54]}  Qxd5 {[%clk 0:02:54]} 5. Nc3 {[%clk 0:02:54]}  Qd8 {[%clk 0:02:55]} 6. d4 {[%clk 0:02:53]}  Nf6 {[%clk 0:02:55]} 7. Nf3 {[%clk 0:02:53]}  e6 {[%clk 0:02:55]} 8. Bd3 {[%clk 0:02:46]}  Be7 {[%clk 0:02:55]} 9. O-O {[%clk 0:02:45]}  O-O {[%clk 0:02:56]} 10. Re1 {[%clk 0:02:43]}  b6 {[%clk 0:02:55]} 11. Bg5 {[%clk 0:02:40]}  Bb7 {[%clk 0:02:55]} 12. Bc2 {[%clk 0:02:40]}  Nbd7 {[%clk 0:02:54]} 13. Qd3 {[%clk 0:02:39]}  Re8 {[%clk 0:02:50]} 14. Rad1 {[%clk 0:02:31]}  a6 {[%clk 0:02:47]} 15. h4 {[%clk 0:02:08]}  h6 {[%clk 0:02:38]} 16. Bxf6 {[%clk 0:01:50]}  Nxf6 {[%clk 0:02:37]} 17. Ne5 {[%clk 0:01:50]}  Rc8 {[%clk 0:02:24]} 18. Ng4 {[%clk 0:01:31]}  g6 {[%clk 0:02:16]} 19. Nxh6+ {[%clk 0:01:28]}  Kg7 {[%clk 0:02:16]} 20. Nxf7 {[%clk 0:01:29]}  Kxf7 {[%clk 0:02:03]} 21. Qxg6+ {[%clk 0:01:28]}  Kf8 {[%clk 0:02:03]} 22. Qh6+ {[%clk 0:01:23]}  Kf7 {[%clk 0:01:59]} 23. Qg6+ {[%clk 0:01:16]}  Kf8 {[%clk 0:01:59]} 24. Re3 {[%clk 0:01:13]}  Rxc3 {[%clk 0:01:33]} 25. bxc3 {[%clk 0:01:12]}  Qd5 {[%clk 0:01:34]} 26. Rg3 {[%clk 0:01:09]}  Rd8 {[%clk 0:01:21]} 27. Re1 {[%clk 0:01:07]}  Rd6 {[%clk 0:01:06]} 28. Re5 {[%clk 0:01:01]}  Qxa2 {[%clk 0:01:01]} 29. Qg7+ {[%clk 0:00:59]}  Ke8 {[%clk 0:01:01]} 30. Bg6+ {[%clk 0:00:43]}  Kd7 {[%clk 0:01:01]} 31. h5 {[%clk 0:00:37]}  Qa1+ {[%clk 0:00:37]} 32. Kh2 {[%clk 0:00:36]}  Qc1 {[%clk 0:00:25]} 33. Ree3 {[%clk 0:00:30]}  Rd5 {[%clk 0:00:23]} 34. h6 {[%clk 0:00:29]}  Qd1 {[%clk 0:00:17]} 35. h7 {[%clk 0:00:16]}  Nxh7 {[%clk 0:00:17]} 36. Qxh7 {[%clk 0:00:14]}  Ra5 {[%clk 0:00:07]} 37. Qh3 {[%clk 0:00:13]}  Ra1 {[%clk 0:00:07]} 38. Qxe6+ {[%clk 0:00:13]}  Kc7 {[%clk 0:00:06]} 39. Qxe7+ {[%clk 0:00:12]}  Kb8 {[%clk 0:00:06]} 40. Rgf3 {[%clk 0:00:10]}  Qh1+ {[%clk 0:00:06]} 41. Kg3 {[%clk 0:00:10]}  Ka7 {[%clk 0:00:03]} 42. Be4 {[%clk 0:00:10]} 1-0


[Site "https://www.chess.com"]

[Event "Titled Tuesday Blitz August 22 Late 2023"]
[White "Kochiev, Ivan"]
[Black "Matinian, Nikita"]
[WhiteFideId "2917890"]
[BlackFideId "24129100"]
[WhiteElo "2585"]
[BlackElo "2717"]
[Result "0-1"]
[Round "9"]
[TimeControl "180+1"]
[Date "2023.08.22"]
[WhiteClock "0:00:01"]
[BlackClock "0:00:42"]
[Board "33"]

1. e4 {[%clk 0:03:00]}  c5 {[%clk 0:02:58]} 2. Nf3 {[%clk 0:03:01]}  d6 {[%clk 0:02:58]} 3. d4 {[%clk 0:03:01]}  cxd4 {[%clk 0:02:59]} 4. Nxd4 {[%clk 0:03:02]}  Nf6 {[%clk 0:02:59]} 5. f3 {[%clk 0:03:03]}  Nc6 {[%clk 0:02:57]} 6. c4 {[%clk 0:03:01]}  Qb6 {[%clk 0:02:57]} 7. Nc2 {[%clk 0:02:48]}  g6 {[%clk 0:02:47]} 8. Nc3 {[%clk 0:02:48]}  Bg7 {[%clk 0:02:40]} 9. Bd3 {[%clk 0:02:48]}  Ne5 {[%clk 0:02:36]} 10. Qe2 {[%clk 0:02:48]}  Be6 {[%clk 0:02:35]} 11. Rb1 {[%clk 0:02:24]}  Rc8 {[%clk 0:02:26]} 12. b3 {[%clk 0:02:23]}  Nfd7 {[%clk 0:02:11]} 13. Na4 {[%clk 0:02:00]}  Nxd3+ {[%clk 0:01:43]} 14. Qxd3 {[%clk 0:01:58]}  Bxc4 {[%clk 0:01:29]} 15. Qd2 {[%clk 0:01:05]}  Qa6 {[%clk 0:01:11]} 16. Kf2 {[%clk 0:00:43]}  Bb5 {[%clk 0:01:07]} 17. Nd4 {[%clk 0:00:28]}  Bxa4 {[%clk 0:01:03]} 18. bxa4 {[%clk 0:00:29]}  Qxa4 {[%clk 0:01:02]} 19. Ne2 {[%clk 0:00:29]}  Rc2 {[%clk 0:01:00]} 20. Qd5 {[%clk 0:00:26]}  Qd4+ {[%clk 0:00:43]} 21. Qxd4 {[%clk 0:00:20]}  Bxd4+ {[%clk 0:00:44]} 22. Ke1 {[%clk 0:00:12]}  Bb6 {[%clk 0:00:43]} 23. Bb2 {[%clk 0:00:02]}  O-O {[%clk 0:00:43]} 24. Kd1 {[%clk 0:00:02]}  Rfc8 {[%clk 0:00:43]} 25. Rf1 {[%clk 0:00:02]}  Ne5 {[%clk 0:00:42]} 26. f4 {[%clk 0:00:02]}  Nd3 {[%clk 0:00:42]} 27. Rf3 {[%clk 0:00:01]}  Nxb2+ {[%clk 0:00:42]} 0-1


[Site "https://www.chess.com"]

[Event "Titled Tuesday Blitz August 22 Late 2023"]
[White "Diaz Perez, Michel Alejandro"]
[Black "Kashefi, Amir Hosein"]
[WhiteFideId "3517179"]
[BlackFideId "12557935"]
[WhiteElo "2691"]
[BlackElo "2578"]
[Result "1-0"]
[Round "9"]
[TimeControl "180+1"]
[Date "2023.08.22"]
[WhiteClock "0:00:17"]
[BlackClock "0:00:00"]
[Board "34"]

1. d4 {[%clk 0:03:00]}  d5 {[%clk 0:02:44]} 2. c4 {[%clk 0:03:00]}  c6 {[%clk 0:02:44]} 3. Nf3 {[%clk 0:02:55]}  Nf6 {[%clk 0:02:39]} 4. Qc2 {[%clk 0:02:55]}  g6 {[%clk 0:02:35]} 5. Nbd2 {[%clk 0:02:46]}  Bg7 {[%clk 0:02:35]} 6. e3 {[%clk 0:02:44]}  O-O {[%clk 0:02:35]} 7. Bd3 {[%clk 0:02:44]}  Nbd7 {[%clk 0:02:31]} 8. O-O {[%clk 0:02:43]}  Nb6 {[%clk 0:02:28]} 9. b3 {[%clk 0:02:42]}  Bg4 {[%clk 0:02:28]} 10. a4 {[%clk 0:02:41]}  Bxf3 {[%clk 0:02:28]} 11. Nxf3 {[%clk 0:02:40]}  a6 {[%clk 0:02:25]} 12. Ba3 {[%clk 0:02:29]}  Re8 {[%clk 0:02:25]} 13. h3 {[%clk 0:02:25]}  e6 {[%clk 0:02:22]} 14. Rab1 {[%clk 0:02:18]}  Bf8 {[%clk 0:02:21]} 15. Bxf8 {[%clk 0:02:17]}  Kxf8 {[%clk 0:02:21]} 16. Ne5 {[%clk 0:02:16]}  Nbd7 {[%clk 0:02:20]} 17. f4 {[%clk 0:02:16]}  Kg7 {[%clk 0:02:00]} 18. c5 {[%clk 0:02:14]}  Ng8 {[%clk 0:01:51]} 19. Qc3 {[%clk 0:02:08]}  f5 {[%clk 0:01:50]} 20. b4 {[%clk 0:02:06]}  Ngf6 {[%clk 0:01:50]} 21. b5 {[%clk 0:02:05]}  axb5 {[%clk 0:01:37]} 22. axb5 {[%clk 0:02:06]}  Qc7 {[%clk 0:01:31]} 23. b6 {[%clk 0:02:01]}  Qd8 {[%clk 0:01:29]} 24. Ra1 {[%clk 0:02:01]}  Qe7 {[%clk 0:01:26]} 25. Rxa8 {[%clk 0:01:42]}  Rxa8 {[%clk 0:01:25]} 26. Ra1 {[%clk 0:01:43]}  Rxa1+ {[%clk 0:01:24]} 27. Qxa1 {[%clk 0:01:44]}  Nxe5 {[%clk 0:01:24]} 28. fxe5 {[%clk 0:01:44]}  Ne4 {[%clk 0:01:16]} 29. Bxe4 {[%clk 0:01:29]}  fxe4 {[%clk 0:00:57]} 30. Qa8 {[%clk 0:01:30]}  Kh6 {[%clk 0:00:52]} 31. Kh2 {[%clk 0:01:10]}  Kg5 {[%clk 0:00:41]} 32. Qc8 {[%clk 0:01:06]}  Kh6 {[%clk 0:00:29]} 33. Qc7 {[%clk 0:00:46]}  Qg7 {[%clk 0:00:26]} 34. h4 {[%clk 0:00:25]}  g5 {[%clk 0:00:02]} 35. h5 {[%clk 0:00:25]}  Qf8 {[%clk 0:00:01]} 36. Qxb7 {[%clk 0:00:17]}  Qf2 {[%clk 0:00:01]} 37. Qa6 {[%clk 0:00:15]}  Qh4+ {[%clk 0:00:01]} 38. Kg1 {[%clk 0:00:16]}  Qe1+ {[%clk 0:00:01]} 39. Qf1 {[%clk 0:00:16]}  Qxe3+ {[%clk 0:00:01]} 40. Qf2 {[%clk 0:00:17]}  Qc1+ {[%clk 0:00:00]} 41. Kh2 {[%clk 0:00:17]} 1-0


[Site "https://www.chess.com"]

[Event "Titled Tuesday Blitz August 22 Late 2023"]
[White "Cuenca Jimenez, Jose Fernando"]
[Black "Guerra Tulcan, Lenin"]
[WhiteFideId "2255570"]
[BlackFideId "3601382"]
[WhiteElo "2682"]
[BlackElo "2559"]
[Result "0-1"]
[Round "9"]
[TimeControl "180+1"]
[Date "2023.08.22"]
[WhiteClock "0:00:30"]
[BlackClock "0:00:27"]
[Board "37"]

1. c4 {[%clk 0:03:00]}  e5 {[%clk 0:02:59]} 2. Nc3 {[%clk 0:03:00]}  Bc5 {[%clk 0:02:59]} 3. Nf3 {[%clk 0:02:57]}  d6 {[%clk 0:02:59]} 4. e3 {[%clk 0:02:57]}  a6 {[%clk 0:02:59]} 5. d4 {[%clk 0:02:48]}  exd4 {[%clk 0:03:00]} 6. Nxd4 {[%clk 0:02:44]}  Nf6 {[%clk 0:02:57]} 7. Be2 {[%clk 0:02:43]}  O-O {[%clk 0:02:57]} 8. O-O {[%clk 0:02:43]}  Nc6 {[%clk 0:02:57]} 9. Nxc6 {[%clk 0:02:37]}  bxc6 {[%clk 0:02:57]} 10. Bf3 {[%clk 0:02:37]}  Be6 {[%clk 0:02:54]} 11. b3 {[%clk 0:02:25]}  d5 {[%clk 0:02:20]} 12. Na4 {[%clk 0:02:22]}  Be7 {[%clk 0:02:17]} 13. c5 {[%clk 0:02:09]}  Nd7 {[%clk 0:02:14]} 14. Ba3 {[%clk 0:02:00]}  Bf6 {[%clk 0:02:13]} 15. Rc1 {[%clk 0:01:58]}  Ne5 {[%clk 0:02:12]} 16. Be2 {[%clk 0:01:57]}  Bf5 {[%clk 0:02:07]} 17. Bb2 {[%clk 0:01:54]}  Re8 {[%clk 0:02:05]} 18. Bd4 {[%clk 0:01:53]}  Ng6 {[%clk 0:01:59]} 19. g3 {[%clk 0:01:41]}  Qd7 {[%clk 0:01:44]} 20. Bxf6 {[%clk 0:01:37]}  gxf6 {[%clk 0:01:45]} 21. Qd4 {[%clk 0:01:32]}  Kg7 {[%clk 0:01:41]} 22. Nc3 {[%clk 0:01:16]}  Bh3 {[%clk 0:01:26]} 23. Rfe1 {[%clk 0:01:15]}  Qf5 {[%clk 0:01:26]} 24. f3 {[%clk 0:01:06]}  h5 {[%clk 0:01:19]} 25. Nd1 {[%clk 0:00:55]}  Ne5 {[%clk 0:00:37]} 26. Nf2 {[%clk 0:00:53]}  Qxf3 {[%clk 0:00:34]} 27. Qf4 {[%clk 0:00:30]}  Qg2# {[%clk 0:00:27]} 0-1


[Site "https://www.chess.com"]

[Event "Titled Tuesday Blitz August 22 Late 2023"]
[White "Alex_Sahakyan2006"]
[Black "D`Arruda, Ricardo D."]
[BlackFideId "100692"]
[WhiteElo "2680"]
[BlackElo "2557"]
[Result "1-0"]
[Round "9"]
[TimeControl "180+1"]
[Date "2023.08.22"]
[WhiteClock "0:00:41"]
[BlackClock "0:00:36"]
[Board "38"]

1. e4 {[%clk 0:02:57]}  c5 {[%clk 0:02:59]} 2. Nc3 {[%clk 0:02:56]}  e6 {[%clk 0:02:58]} 3. f4 {[%clk 0:02:54]}  d5 {[%clk 0:02:54]} 4. Nf3 {[%clk 0:02:52]}  Nf6 {[%clk 0:02:53]} 5. Bb5+ {[%clk 0:02:50]}  Nbd7 {[%clk 0:02:47]} 6. d3 {[%clk 0:02:30]}  a6 {[%clk 0:02:42]} 7. Bxd7+ {[%clk 0:02:28]}  Bxd7 {[%clk 0:02:39]} 8. O-O {[%clk 0:02:27]}  dxe4 {[%clk 0:02:34]} 9. dxe4 {[%clk 0:02:25]}  Bc6 {[%clk 0:02:34]} 10. Qe2 {[%clk 0:02:24]}  Be7 {[%clk 0:02:32]} 11. Ne5 {[%clk 0:02:24]}  Qc7 {[%clk 0:02:31]} 12. Nxc6 {[%clk 0:02:16]}  Qxc6 {[%clk 0:02:32]} 13. e5 {[%clk 0:02:16]}  Nd5 {[%clk 0:02:31]} 14. Nxd5 {[%clk 0:02:16]}  Qxd5 {[%clk 0:02:28]} 15. Rd1 {[%clk 0:02:15]}  Qc6 {[%clk 0:02:27]} 16. Be3 {[%clk 0:02:08]}  O-O {[%clk 0:02:26]} 17. Kf2 {[%clk 0:02:04]}  Rfd8 {[%clk 0:02:24]} 18. c3 {[%clk 0:02:05]}  g6 {[%clk 0:02:19]} 19. g3 {[%clk 0:02:01]}  Rxd1 {[%clk 0:02:10]} 20. Rxd1 {[%clk 0:02:01]}  Rd8 {[%clk 0:02:10]} 21. Rxd8+ {[%clk 0:01:57]}  Bxd8 {[%clk 0:02:11]} 22. Qd1 {[%clk 0:01:57]}  Be7 {[%clk 0:02:02]} 23. c4 {[%clk 0:01:56]}  f5 {[%clk 0:01:50]} 24. exf6 {[%clk 0:01:39]}  Bxf6 {[%clk 0:01:49]} 25. b3 {[%clk 0:01:40]}  Kf7 {[%clk 0:01:48]} 26. Qf3 {[%clk 0:01:36]}  Qxf3+ {[%clk 0:01:47]} 27. Kxf3 {[%clk 0:01:37]}  Be7 {[%clk 0:01:41]} 28. Ke4 {[%clk 0:01:37]}  Bd6 {[%clk 0:01:41]} 29. Bd2 {[%clk 0:01:27]}  h5 {[%clk 0:01:40]} 30. Bc3 {[%clk 0:01:26]}  Ke8 {[%clk 0:01:36]} 31. Be5 {[%clk 0:01:25]}  Be7 {[%clk 0:01:36]} 32. Bb8 {[%clk 0:01:15]}  Bf6 {[%clk 0:01:35]} 33. Bd6 {[%clk 0:01:14]}  Bd4 {[%clk 0:01:31]} 34. b4 {[%clk 0:01:07]}  Bg1 {[%clk 0:01:26]} 35. Bxc5 {[%clk 0:01:07]}  Bxh2 {[%clk 0:01:25]} 36. Kf3 {[%clk 0:01:07]}  h4 {[%clk 0:01:22]} 37. gxh4 {[%clk 0:01:06]}  b5 {[%clk 0:01:20]} 38. cxb5 {[%clk 0:01:04]}  axb5 {[%clk 0:01:21]} 39. Be3 {[%clk 0:01:01]}  e5 {[%clk 0:01:14]} 40. Ke4 {[%clk 0:00:45]}  exf4 {[%clk 0:01:10]} 41. Bxf4 {[%clk 0:00:46]}  Bg1 {[%clk 0:01:11]} 42. Be3 {[%clk 0:00:46]}  Bh2 {[%clk 0:01:10]} 43. Kd5 {[%clk 0:00:41]}  Kd7 {[%clk 0:00:50]} 44. Kc5 {[%clk 0:00:41]}  Bg3 {[%clk 0:00:36]} 45. Bg5 {[%clk 0:00:41]} 1-0


[Site "https://www.chess.com"]